[Event "Titled Tuesday Blitz October 11 Late 2022"]
[White "Maksimovic, Bojan"]
[Black "Iliaguev, Nisim"]
[WhiteFideId "14408120"]
[BlackFideId "2817276"]
[WhiteElo "2447"]
[BlackElo "2264"]
[Result "1-0"]
[Round "09"]
[TimeControl "180+1"]
[Date "2022.10.11"]
[WhiteClock "0:00:02"]
[BlackClock "0:00:01"]

1. e4 {[%clk 0:03:00]}  c6 {[%clk 0:03:00]} 2. Nf3 {[%clk 0:02:59]}  d5 {[%clk 0:03:00]} 3. d3 {[%clk 0:03:00]}  dxe4 {[%clk 0:03:00]} 4. dxe4 {[%clk 0:03:01]}  Qxd1+ {[%clk 0:03:01]} 5. Kxd1 {[%clk 0:03:02]}  Bg4 {[%clk 0:03:01]} 6. Be2 {[%clk 0:03:01]}  Bxf3 {[%clk 0:03:01]} 7. Bxf3 {[%clk 0:03:02]}  Nd7 {[%clk 0:03:01]} 8. Be2 {[%clk 0:02:56]}  e5 {[%clk 0:03:01]} 9. f3 {[%clk 0:02:54]}  O-O-O {[%clk 0:03:01]} 10. c3 {[%clk 0:02:54]}  f6 {[%clk 0:03:00]} 11. Kc2 {[%clk 0:02:54]}  a5 {[%clk 0:02:59]} 12. Nd2 {[%clk 0:02:51]}  Bc5 {[%clk 0:02:53]} 13. a4 {[%clk 0:02:42]}  Kc7 {[%clk 0:02:48]} 14. Nc4 {[%clk 0:02:39]}  b6 {[%clk 0:02:43]} 15. Rb1 {[%clk 0:02:35]}  Ne7 {[%clk 0:02:39]} 16. b4 {[%clk 0:02:15]}  axb4 {[%clk 0:02:38]} 17. cxb4 {[%clk 0:02:16]}  Bd4 {[%clk 0:02:39]} 18. Bd2 {[%clk 0:02:15]}  Nf8 {[%clk 0:02:32]} 19. b5 {[%clk 0:02:08]}  Ne6 {[%clk 0:02:11]} 20. a5 {[%clk 0:02:06]}  cxb5 {[%clk 0:02:01]} 21. Rxb5 {[%clk 0:01:57]}  bxa5 {[%clk 0:01:53]} 22. Rhb1 {[%clk 0:01:57]}  Kd7 {[%clk 0:01:46]} 23. Rb7+ {[%clk 0:01:34]}  Ke8 {[%clk 0:01:46]} 24. Bxa5 {[%clk 0:01:35]}  Rc8 {[%clk 0:01:33]} 25. Bb4 {[%clk 0:01:11]}  Bc5 {[%clk 0:00:48]} 26. Bxc5 {[%clk 0:01:10]}  Rxc5 {[%clk 0:00:48]} 27. Rb8+ {[%clk 0:01:03]}  Nd8 {[%clk 0:00:48]} 28. Kd2 {[%clk 0:00:54]}  Nc6 {[%clk 0:00:47]} 29. Ra8 {[%clk 0:00:50]}  Kf7 {[%clk 0:00:42]} 30. Nd6+ {[%clk 0:00:47]}  Kg6 {[%clk 0:00:38]} 31. Nb7 {[%clk 0:00:34]}  Nxb7 {[%clk 0:00:24]} 32. Rxh8 {[%clk 0:00:35]}  Nba5 {[%clk 0:00:19]} 33. Rb5 {[%clk 0:00:26]}  Nd4 {[%clk 0:00:10]} 34. Rxc5 {[%clk 0:00:23]}  Nab3+ {[%clk 0:00:11]} 35. Ke3 {[%clk 0:00:23]}  Nxc5 {[%clk 0:00:12]} 36. Bc4 {[%clk 0:00:21]}  Na4 {[%clk 0:00:09]} 37. Bd5 {[%clk 0:00:19]}  Nc3 {[%clk 0:00:08]} 38. Kf2 {[%clk 0:00:16]}  Nd1+ {[%clk 0:00:08]} 39. Kf1 {[%clk 0:00:09]}  Ne3+ {[%clk 0:00:08]} 40. Kg1 {[%clk 0:00:09]}  Nd1 {[%clk 0:00:08]} 41. h4 {[%clk 0:00:07]}  Ne2+ {[%clk 0:00:08]} 42. Kf1 {[%clk 0:00:06]}  Nd4 {[%clk 0:00:08]} 43. Bb7 {[%clk 0:00:05]}  Ne3+ {[%clk 0:00:08]} 44. Kf2 {[%clk 0:00:05]}  Nd1+ {[%clk 0:00:08]} 45. Kf1 {[%clk 0:00:05]}  Ne3+ {[%clk 0:00:09]} 46. Kg1 {[%clk 0:00:05]}  Nd1 {[%clk 0:00:09]} 47. Bc8 {[%clk 0:00:05]}  Ne2+ {[%clk 0:00:09]} 48. Kh2 {[%clk 0:00:04]}  Ne3 {[%clk 0:00:09]} 49. Bf5+ {[%clk 0:00:04]}  Nxf5 {[%clk 0:00:07]} 50. exf5+ {[%clk 0:00:05]}  Kxf5 {[%clk 0:00:06]} 51. Rxh7 {[%clk 0:00:05]}  Kg6 {[%clk 0:00:07]} 52. Rh8 {[%clk 0:00:06]}  Nf4 {[%clk 0:00:07]} 53. g4 {[%clk 0:00:05]}  Nd3 {[%clk 0:00:07]} 54. Kg3 {[%clk 0:00:06]}  Nf4 {[%clk 0:00:07]} 55. Ra8 {[%clk 0:00:05]}  Ne2+ {[%clk 0:00:07]} 56. Kf2 {[%clk 0:00:05]}  Nf4 {[%clk 0:00:08]} 57. h5+ {[%clk 0:00:05]}  Kh6 {[%clk 0:00:07]} 58. Rh8+ {[%clk 0:00:05]}  Kg5 {[%clk 0:00:07]} 59. Rh7 {[%clk 0:00:05]}  Ne6 {[%clk 0:00:07]} 60. Ke3 {[%clk 0:00:05]}  Kh4 {[%clk 0:00:08]} 61. Rh8 {[%clk 0:00:03]}  Kg3 {[%clk 0:00:06]} 62. Re8 {[%clk 0:00:02]}  Ng5 {[%clk 0:00:07]} 63. Re7 {[%clk 0:00:02]}  Nxf3 {[%clk 0:00:03]} 64. Rxg7 {[%clk 0:00:02]}  Nd4 {[%clk 0:00:01]} 65. h6 {[%clk 0:00:02]}  f5 {[%clk 0:00:01]} 66. gxf5+ {[%clk 0:00:02]} 1-0


[Site "https://www.chess.com"]

[Event "Titled Tuesday Blitz October 11 Late 2022"]
[White "Meduri, Aakaash"]
[Black "Yano, William Jorge Froes"]
[WhiteFideId "2032252"]
[BlackFideId "2112949"]
[WhiteElo "2113"]
[BlackElo "2122"]
[Result "0-1"]
[Round "09"]
[TimeControl "180+1"]
[Date "2022.10.12"]
[WhiteClock "0:01:13"]
[BlackClock "0:01:06"]

1. e4 {[%clk 0:02:57]}  e6 {[%clk 0:03:00]} 2. d4 {[%clk 0:02:56]}  d5 {[%clk 0:03:00]} 3. e5 {[%clk 0:02:57]}  c5 {[%clk 0:03:00]} 4. c3 {[%clk 0:02:57]}  Nc6 {[%clk 0:03:01]} 5. Nf3 {[%clk 0:02:57]}  Nh6 {[%clk 0:03:02]} 6. Bxh6 {[%clk 0:02:54]}  gxh6 {[%clk 0:03:03]} 7. Qb3 {[%clk 0:02:42]}  Bg7 {[%clk 0:02:59]} 8. Nbd2 {[%clk 0:02:40]}  O-O {[%clk 0:02:58]} 9. Be2 {[%clk 0:02:39]}  Rb8 {[%clk 0:02:30]} 10. O-O {[%clk 0:02:37]}  Bd7 {[%clk 0:02:31]} 11. Rfd1 {[%clk 0:02:15]}  f6 {[%clk 0:02:28]} 12. exf6 {[%clk 0:02:08]}  Qxf6 {[%clk 0:02:28]} 13. dxc5 {[%clk 0:02:07]}  Be8 {[%clk 0:02:21]} 14. Nf1 {[%clk 0:02:05]}  Kh8 {[%clk 0:02:03]} 15. Ng3 {[%clk 0:02:05]}  Bg6 {[%clk 0:01:48]} 16. Rf1 {[%clk 0:01:50]}  a6 {[%clk 0:01:44]} 17. Rae1 {[%clk 0:01:44]}  h5 {[%clk 0:01:31]} 18. Bd1 {[%clk 0:01:29]}  h4 {[%clk 0:01:25]} 19. Ne2 {[%clk 0:01:28]}  Be4 {[%clk 0:01:22]} 20. Ned4 {[%clk 0:01:24]}  Qg6 {[%clk 0:01:12]} 21. h3 {[%clk 0:01:14]}  Nxd4 {[%clk 0:01:07]} 22. Nxd4 {[%clk 0:01:13]}  Qxg2# {[%clk 0:01:06]} 0-1


[Site "https://www.chess.com"]

[Event "Titled Tuesday Blitz October 11 Late 2022"]
[White "Melikhov, Evgeny V."]
[Black "De Souza, Cristiano Gomes"]
[WhiteFideId "4122046"]
[BlackFideId "2151758"]
[WhiteElo "2169"]
[BlackElo "2068"]
[Result "1-0"]
[Round "09"]
[TimeControl "180+1"]
[Date "2022.10.12"]
[WhiteClock "0:00:30"]
[BlackClock "0:00:09"]

1. d4 {[%clk 0:03:00]}  Nf6 {[%clk 0:02:58]} 2. c4 {[%clk 0:03:00]}  g6 {[%clk 0:02:58]} 3. Nc3 {[%clk 0:03:00]}  Bg7 {[%clk 0:02:55]} 4. e4 {[%clk 0:02:59]}  d6 {[%clk 0:02:55]} 5. f3 {[%clk 0:02:59]}  O-O {[%clk 0:02:55]} 6. Be3 {[%clk 0:02:59]}  Nc6 {[%clk 0:02:55]} 7. Nge2 {[%clk 0:02:59]}  a6 {[%clk 0:02:50]} 8. Qd2 {[%clk 0:02:59]}  Rb8 {[%clk 0:02:50]} 9. Bh6 {[%clk 0:02:58]}  b5 {[%clk 0:02:43]} 10. h4 {[%clk 0:02:55]}  bxc4 {[%clk 0:02:38]} 11. Bxg7 {[%clk 0:02:47]}  Kxg7 {[%clk 0:02:38]} 12. h5 {[%clk 0:02:45]}  e5 {[%clk 0:02:32]} 13. d5 {[%clk 0:02:42]}  Nb4 {[%clk 0:02:27]} 14. Ng3 {[%clk 0:02:41]}  Nd3+ {[%clk 0:02:22]} 15. Bxd3 {[%clk 0:02:41]}  cxd3 {[%clk 0:02:22]} 16. O-O-O {[%clk 0:02:38]}  Bd7 {[%clk 0:02:12]} 17. hxg6 {[%clk 0:02:36]}  fxg6 {[%clk 0:02:11]} 18. Qh6+ {[%clk 0:02:35]}  Kf7 {[%clk 0:02:09]} 19. Rxd3 {[%clk 0:02:35]}  Rb6 {[%clk 0:01:50]} 20. Nf1 {[%clk 0:02:25]}  Qe7 {[%clk 0:01:39]} 21. Ne3 {[%clk 0:02:22]}  Rfb8 {[%clk 0:01:36]} 22. Rd2 {[%clk 0:02:22]}  Kg8 {[%clk 0:01:33]} 23. g4 {[%clk 0:02:17]}  Qg7 {[%clk 0:01:32]} 24. Qh4 {[%clk 0:02:05]}  a5 {[%clk 0:01:15]} 25. Rg2 {[%clk 0:01:57]}  a4 {[%clk 0:01:11]} 26. a3 {[%clk 0:01:57]}  Rb3 {[%clk 0:01:08]} 27. Rhh2 {[%clk 0:01:48]}  Be8 {[%clk 0:00:45]} 28. Nf5 {[%clk 0:01:39]}  Qf8 {[%clk 0:00:29]} 29. Qg5 {[%clk 0:01:14]}  Nd7 {[%clk 0:00:17]} 30. Ne7+ {[%clk 0:00:42]}  Kg7 {[%clk 0:00:13]} 31. Qh6+ {[%clk 0:00:38]}  Kf6 {[%clk 0:00:12]} 32. Nc6 {[%clk 0:00:32]}  Qxh6+ {[%clk 0:00:10]} 33. Rxh6 {[%clk 0:00:32]}  R8b6 {[%clk 0:00:10]} 34. Rxh7 {[%clk 0:00:31]}  Nc5 {[%clk 0:00:09]} 35. g5# {[%clk 0:00:30]} 1-0


[Site "https://www.chess.com"]

[Event "Titled Tuesday Blitz October 11 Late 2022"]
[White "Osmonbekov, Talaibek"]
[Black "Sanchez, Robert"]
[WhiteFideId "2017253"]
[BlackFideId "2034360"]
[WhiteElo "2135"]
[BlackElo "2399"]
[Result "1-0"]
[Round "09"]
[TimeControl "180+1"]
[Date "2022.10.12"]
[WhiteClock "0:01:45"]
[BlackClock "0:00:29"]

1. d4 {[%clk 0:03:00]}  d5 {[%clk 0:03:00]} 2. Bf4 {[%clk 0:03:01]}  e6 {[%clk 0:02:59]} 3. Nc3 {[%clk 0:03:02]}  Nf6 {[%clk 0:02:58]} 4. e3 {[%clk 0:03:02]}  Bb4 {[%clk 0:02:58]} 5. Bd3 {[%clk 0:03:02]}  c5 {[%clk 0:02:57]} 6. dxc5 {[%clk 0:02:59]}  Nc6 {[%clk 0:02:57]} 7. Nf3 {[%clk 0:02:59]}  Bxc5 {[%clk 0:02:56]} 8. O-O {[%clk 0:02:58]}  O-O {[%clk 0:02:55]} 9. e4 {[%clk 0:02:59]}  d4 {[%clk 0:02:52]} 10. Ne2 {[%clk 0:02:58]}  Re8 {[%clk 0:02:29]} 11. e5 {[%clk 0:02:48]}  Nd5 {[%clk 0:02:25]} 12. Bg3 {[%clk 0:02:40]}  g6 {[%clk 0:01:47]} 13. a3 {[%clk 0:02:39]}  Nde7 {[%clk 0:01:41]} 14. Bh4 {[%clk 0:02:25]}  a5 {[%clk 0:01:37]} 15. Bf6 {[%clk 0:02:21]}  Qb6 {[%clk 0:01:35]} 16. Qd2 {[%clk 0:02:19]}  Nd5 {[%clk 0:01:33]} 17. Qh6 {[%clk 0:02:08]}  Nxf6 {[%clk 0:01:25]} 18. exf6 {[%clk 0:02:07]}  Bf8 {[%clk 0:01:25]} 19. Qh4 {[%clk 0:02:06]}  e5 {[%clk 0:01:14]} 20. Ng5 {[%clk 0:02:01]}  h6 {[%clk 0:00:53]} 21. Bxg6 {[%clk 0:02:00]}  Be6 {[%clk 0:00:49]} 22. Be4 {[%clk 0:01:47]}  Rad8 {[%clk 0:00:33]} 23. Nxe6 {[%clk 0:01:45]}  Rxe6 {[%clk 0:00:32]} 24. Qg4+ {[%clk 0:01:44]}  Kh8 {[%clk 0:00:29]} 25. Qf5 {[%clk 0:01:45]} 1-0


[Site "https://www.chess.com"]

[Event "Titled Tuesday Blitz October 11 Late 2022"]
[White "Poliakova, Varvara"]
[Black "Prydun, Andriy"]
[WhiteFideId "13518313"]
[BlackFideId "14145898"]
[WhiteElo "1938"]
[BlackElo "2163"]
[Result "1-0"]
[Round "09"]
[TimeControl "180+1"]
[Date "2022.10.12"]
[WhiteClock "0:00:27"]
[BlackClock "0:00:06"]

1. e4 {[%clk 0:03:00]}  c6 {[%clk 0:02:31]} 2. d4 {[%clk 0:02:58]}  d5 {[%clk 0:02:31]} 3. Nd2 {[%clk 0:02:58]}  Nd7 {[%clk 0:02:28]} 4. c3 {[%clk 0:02:56]}  dxe4 {[%clk 0:02:27]} 5. Nxe4 {[%clk 0:02:57]}  Ngf6 {[%clk 0:02:27]} 6. Nxf6+ {[%clk 0:02:46]}  Nxf6 {[%clk 0:02:27]} 7. Nf3 {[%clk 0:02:40]}  Bg4 {[%clk 0:02:26]} 8. Be2 {[%clk 0:02:40]}  e6 {[%clk 0:02:25]} 9. h3 {[%clk 0:02:33]}  Bh5 {[%clk 0:02:22]} 10. O-O {[%clk 0:02:31]}  Be7 {[%clk 0:02:21]} 11. Ne5 {[%clk 0:02:19]}  Bxe2 {[%clk 0:02:19]} 12. Qxe2 {[%clk 0:02:20]}  O-O {[%clk 0:02:18]} 13. Bf4 {[%clk 0:02:17]}  Nd7 {[%clk 0:02:02]} 14. Nd3 {[%clk 0:02:02]}  Qa5 {[%clk 0:01:42]} 15. a3 {[%clk 0:01:44]}  Rac8 {[%clk 0:01:38]} 16. Rad1 {[%clk 0:01:41]}  Rfe8 {[%clk 0:01:34]} 17. Ne5 {[%clk 0:01:36]}  Nxe5 {[%clk 0:01:31]} 18. Bxe5 {[%clk 0:01:37]}  Bf8 {[%clk 0:01:28]} 19. Rd3 {[%clk 0:01:34]}  c5 {[%clk 0:01:13]} 20. dxc5 {[%clk 0:01:17]}  Rxc5 {[%clk 0:01:07]} 21. Bg3 {[%clk 0:01:13]}  Qb5 {[%clk 0:00:56]} 22. Rfd1 {[%clk 0:01:10]}  e5 {[%clk 0:00:29]} 23. Qe4 {[%clk 0:01:06]}  f5 {[%clk 0:00:20]} 24. Qxf5 {[%clk 0:01:03]}  e4 {[%clk 0:00:20]} 25. Rd5 {[%clk 0:01:01]}  e3 {[%clk 0:00:08]} 26. fxe3 {[%clk 0:00:59]}  Rxd5 {[%clk 0:00:04]} 27. Qxd5+ {[%clk 0:00:57]}  Qxd5 {[%clk 0:00:04]} 28. Rxd5 {[%clk 0:00:58]}  Rxe3 {[%clk 0:00:04]} 29. Kf2 {[%clk 0:00:54]}  Re7 {[%clk 0:00:03]} 30. c4 {[%clk 0:00:50]}  g6 {[%clk 0:00:03]} 31. Bd6 {[%clk 0:00:50]}  Rf7+ {[%clk 0:00:03]} 32. Ke2 {[%clk 0:00:51]}  Bxd6 {[%clk 0:00:03]} 33. Rxd6 {[%clk 0:00:52]}  Kg7 {[%clk 0:00:03]} 34. b4 {[%clk 0:00:50]}  h5 {[%clk 0:00:03]} 35. c5 {[%clk 0:00:50]}  g5 {[%clk 0:00:03]} 36. Kd3 {[%clk 0:00:50]}  h4 {[%clk 0:00:03]} 37. Kc4 {[%clk 0:00:43]}  Rf2 {[%clk 0:00:02]} 38. Rd7+ {[%clk 0:00:43]}  Kf6 {[%clk 0:00:02]} 39. Rxb7 {[%clk 0:00:42]}  Rxg2 {[%clk 0:00:03]} 40. c6 {[%clk 0:00:42]}  Rg1 {[%clk 0:00:03]} 41. c7 {[%clk 0:00:41]}  Rc1+ {[%clk 0:00:04]} 42. Kd4 {[%clk 0:00:38]}  g4 {[%clk 0:00:05]} 43. hxg4 {[%clk 0:00:36]}  h3 {[%clk 0:00:06]} 44. g5+ {[%clk 0:00:25]}  Kxg5 {[%clk 0:00:05]} 45. Rb5+ {[%clk 0:00:25]}  Kg4 {[%clk 0:00:05]} 46. Rc5 {[%clk 0:00:25]}  Rxc5 {[%clk 0:00:05]} 47. Kxc5 {[%clk 0:00:26]}  h2 {[%clk 0:00:06]} 48. c8=Q+ {[%clk 0:00:27]} 1-0


[Site "https://www.chess.com"]

[Event "Titled Tuesday Blitz October 11 Late 2022"]
[White "Preotu, Razvan"]
[Black "Gubajdullin, Alexei"]
[WhiteFideId "2613280"]
[BlackFideId "4141202"]
[WhiteElo "2407"]
[BlackElo "2200"]
[Result "1-0"]
[Round "09"]
[TimeControl "180+1"]
[Date "2022.10.11"]
[WhiteClock "0:00:12"]
[BlackClock "0:00:06"]

1. e4 {[%clk 0:03:00]}  g6 {[%clk 0:02:59]} 2. d4 {[%clk 0:03:00]}  Bg7 {[%clk 0:02:57]} 3. Nc3 {[%clk 0:03:01]}  d6 {[%clk 0:02:56]} 4. Be3 {[%clk 0:03:01]}  c6 {[%clk 0:02:55]} 5. Qd2 {[%clk 0:02:50]}  b5 {[%clk 0:02:54]} 6. Bd3 {[%clk 0:02:45]}  Nd7 {[%clk 0:02:50]} 7. Nf3 {[%clk 0:02:45]}  Nb6 {[%clk 0:02:47]} 8. a4 {[%clk 0:02:41]}  b4 {[%clk 0:02:46]} 9. Ne2 {[%clk 0:02:41]}  a5 {[%clk 0:02:47]} 10. h4 {[%clk 0:02:27]}  h6 {[%clk 0:02:38]} 11. Ng3 {[%clk 0:02:23]}  Nf6 {[%clk 0:02:34]} 12. e5 {[%clk 0:02:09]}  Nfd5 {[%clk 0:02:33]} 13. h5 {[%clk 0:02:08]}  Nxe3 {[%clk 0:02:30]} 14. Qxe3 {[%clk 0:02:08]}  Nd5 {[%clk 0:02:30]} 15. Qe4 {[%clk 0:02:03]}  g5 {[%clk 0:02:24]} 16. O-O {[%clk 0:01:40]}  e6 {[%clk 0:01:37]} 17. Rfe1 {[%clk 0:01:36]}  Kf8 {[%clk 0:01:20]} 18. Rac1 {[%clk 0:01:35]}  c5 {[%clk 0:01:14]} 19. c4 {[%clk 0:01:22]}  bxc3 {[%clk 0:01:13]} 20. bxc3 {[%clk 0:01:23]}  Rb8 {[%clk 0:01:10]} 21. exd6 {[%clk 0:01:09]}  Qxd6 {[%clk 0:01:08]} 22. Nf5 {[%clk 0:01:09]}  Qc7 {[%clk 0:01:04]} 23. Nxg7 {[%clk 0:00:55]}  Kxg7 {[%clk 0:01:03]} 24. dxc5 {[%clk 0:00:53]}  Bb7 {[%clk 0:01:01]} 25. Qd4+ {[%clk 0:00:52]}  Kg8 {[%clk 0:00:57]} 26. Ne5 {[%clk 0:00:50]}  Nf4 {[%clk 0:00:50]} 27. Be4 {[%clk 0:00:23]}  Rd8 {[%clk 0:00:48]} 28. Qc4 {[%clk 0:00:23]}  Bxe4 {[%clk 0:00:34]} 29. Rxe4 {[%clk 0:00:24]}  Rd5 {[%clk 0:00:31]} 30. Ng4 {[%clk 0:00:20]}  Kg7 {[%clk 0:00:26]} 31. Ne3 {[%clk 0:00:15]}  Rxc5 {[%clk 0:00:25]} 32. Qd4+ {[%clk 0:00:16]}  e5 {[%clk 0:00:24]} 33. Qd2 {[%clk 0:00:14]}  Rd8 {[%clk 0:00:23]} 34. Qc2 {[%clk 0:00:13]}  Qc6 {[%clk 0:00:21]} 35. Nf5+ {[%clk 0:00:13]}  Kh7 {[%clk 0:00:21]} 36. Rxf4 {[%clk 0:00:12]}  Kh8 {[%clk 0:00:11]} 37. Rf3 {[%clk 0:00:09]}  e4 {[%clk 0:00:11]} 38. Nd4 {[%clk 0:00:08]}  Rxd4 {[%clk 0:00:09]} 39. Rxf7 {[%clk 0:00:08]}  Rd3 {[%clk 0:00:09]} 40. Qb2 {[%clk 0:00:08]}  Qe8 {[%clk 0:00:07]} 41. c4+ {[%clk 0:00:07]}  Re5 {[%clk 0:00:07]} 42. Rb7 {[%clk 0:00:07]}  Kg8 {[%clk 0:00:06]} 43. Rb8 {[%clk 0:00:07]}  Rd8 {[%clk 0:00:04]} 44. Rxd8 {[%clk 0:00:07]}  Qxd8 {[%clk 0:00:04]} 45. Qxe5 {[%clk 0:00:08]}  e3 {[%clk 0:00:03]} 46. Qd5+ {[%clk 0:00:08]}  Qxd5 {[%clk 0:00:03]} 47. cxd5 {[%clk 0:00:09]}  exf2+ {[%clk 0:00:03]} 48. Kxf2 {[%clk 0:00:09]}  Kf7 {[%clk 0:00:04]} 49. Re1 {[%clk 0:00:10]}  Kf6 {[%clk 0:00:04]} 50. d6 {[%clk 0:00:11]}  g4 {[%clk 0:00:04]} 51. d7 {[%clk 0:00:11]}  g3+ {[%clk 0:00:05]} 52. Kxg3 {[%clk 0:00:11]}  Kg5 {[%clk 0:00:04]} 53. d8=Q+ {[%clk 0:00:11]}  Kxh5 {[%clk 0:00:05]} 54. Qd5+ {[%clk 0:00:09]}  Kg6 {[%clk 0:00:05]} 55. Re6+ {[%clk 0:00:10]}  Kf7 {[%clk 0:00:06]} 56. Qd7+ {[%clk 0:00:11]}  Kf8 {[%clk 0:00:06]} 57. Re8# {[%clk 0:00:12]} 1-0


[Site "https://www.chess.com"]

[Event "Titled Tuesday Blitz October 11 Late 2022"]
[White "Prieto Aranguren, Alain"]
[Black "Carbone, Diego"]
[WhiteFideId "2268906"]
[BlackFideId "3002179"]
[WhiteElo "2209"]
[BlackElo "2243"]
[Result "1/2-1/2"]
[Round "09"]
[TimeControl "180+1"]
[Date "2022.10.12"]
[WhiteClock "0:00:10"]
[BlackClock "0:00:14"]

1. e4 {[%clk 0:02:57]}  e5 {[%clk 0:02:59]} 2. Nf3 {[%clk 0:02:54]}  Nc6 {[%clk 0:03:00]} 3. c3 {[%clk 0:02:54]}  Nf6 {[%clk 0:02:57]} 4. d4 {[%clk 0:02:54]}  Nxe4 {[%clk 0:02:57]} 5. d5 {[%clk 0:02:49]}  Bc5 {[%clk 0:02:58]} 6. Be3 {[%clk 0:02:30]}  Bxe3 {[%clk 0:02:46]} 7. fxe3 {[%clk 0:02:30]}  Ne7 {[%clk 0:02:46]} 8. Nxe5 {[%clk 0:02:23]}  d6 {[%clk 0:02:46]} 9. Qa4+ {[%clk 0:02:15]}  c6 {[%clk 0:02:02]} 10. Qxe4 {[%clk 0:02:14]}  dxe5 {[%clk 0:01:56]} 11. Qxe5 {[%clk 0:02:12]}  Qxd5 {[%clk 0:01:56]} 12. Qxg7 {[%clk 0:02:07]}  Rg8 {[%clk 0:01:56]} 13. Qd4 {[%clk 0:02:07]}  Be6 {[%clk 0:01:54]} 14. Qxd5 {[%clk 0:02:03]}  Nxd5 {[%clk 0:01:54]} 15. e4 {[%clk 0:01:58]}  Ne3 {[%clk 0:01:52]} 16. Na3 {[%clk 0:01:56]}  Nxg2+ {[%clk 0:01:51]} 17. Kf2 {[%clk 0:01:54]}  O-O-O {[%clk 0:01:44]} 18. Nc4 {[%clk 0:01:24]}  Nf4 {[%clk 0:01:28]} 19. Re1 {[%clk 0:01:07]}  Nd3+ {[%clk 0:01:22]} 20. Bxd3 {[%clk 0:01:06]}  Rxd3 {[%clk 0:01:23]} 21. Ne5 {[%clk 0:01:01]}  Rd2+ {[%clk 0:01:23]} 22. Re2 {[%clk 0:01:01]}  Rxe2+ {[%clk 0:01:19]} 23. Kxe2 {[%clk 0:01:01]}  Rg2+ {[%clk 0:01:20]} 24. Kf3 {[%clk 0:00:59]}  Rxb2 {[%clk 0:01:21]} 25. h4 {[%clk 0:00:58]}  Rxa2 {[%clk 0:01:18]} 26. h5 {[%clk 0:00:57]}  Rc2 {[%clk 0:01:18]} 27. Kf4 {[%clk 0:00:55]}  Rxc3 {[%clk 0:01:13]} 28. h6 {[%clk 0:00:50]}  Kd8 {[%clk 0:01:09]} 29. Nf3 {[%clk 0:00:50]}  f6 {[%clk 0:01:06]} 30. Rg1 {[%clk 0:00:45]}  Rd3 {[%clk 0:00:42]} 31. Nh4 {[%clk 0:00:34]}  Ke8 {[%clk 0:00:33]} 32. Nf5 {[%clk 0:00:26]}  Bxf5 {[%clk 0:00:27]} 33. Kxf5 {[%clk 0:00:26]}  Rf3+ {[%clk 0:00:27]} 34. Ke6 {[%clk 0:00:19]}  Kf8 {[%clk 0:00:27]} 35. Rg7 {[%clk 0:00:15]}  Rf4 {[%clk 0:00:26]} 36. Rxh7 {[%clk 0:00:14]}  Rxe4+ {[%clk 0:00:26]} 37. Kxf6 {[%clk 0:00:14]}  Rf4+ {[%clk 0:00:24]} 38. Ke6 {[%clk 0:00:14]}  Kg8 {[%clk 0:00:20]} 39. Rxb7 {[%clk 0:00:14]}  Rh4 {[%clk 0:00:18]} 40. Rxa7 {[%clk 0:00:10]}  Rxh6+ {[%clk 0:00:17]} 41. Ke5 {[%clk 0:00:10]}  Kf8 {[%clk 0:00:16]} 42. Kd4 {[%clk 0:00:10]}  Ke8 {[%clk 0:00:16]} 43. Kc5 {[%clk 0:00:10]}  Kd8 {[%clk 0:00:16]} 44. Rg7 {[%clk 0:00:09]}  Kc8 {[%clk 0:00:16]} 45. Rf7 {[%clk 0:00:09]}  Re6 {[%clk 0:00:16]} 46. Rg7 {[%clk 0:00:09]}  Rf6 {[%clk 0:00:17]} 47. Rh7 {[%clk 0:00:09]}  Re6 {[%clk 0:00:16]} 48. Rg7 {[%clk 0:00:09]}  Kd8 {[%clk 0:00:16]} 49. Rh7 {[%clk 0:00:09]}  Rg6 {[%clk 0:00:15]} 50. Rf7 {[%clk 0:00:09]}  Ke8 {[%clk 0:00:16]} 51. Rh7 {[%clk 0:00:10]}  Kd8 {[%clk 0:00:16]} 52. Rf7 {[%clk 0:00:09]}  Kc8 {[%clk 0:00:16]} 53. Rh7 {[%clk 0:00:10]}  Re6 {[%clk 0:00:15]} 54. Rf7 {[%clk 0:00:10]}  Kb8 {[%clk 0:00:15]} 55. Rh7 {[%clk 0:00:10]}  Rg6 {[%clk 0:00:14]} 56. Rf7 {[%clk 0:00:09]}  Rh6 {[%clk 0:00:15]} 57. Rg7 {[%clk 0:00:09]}  Re6 {[%clk 0:00:15]} 58. Rh7 {[%clk 0:00:10]}  Rf6 {[%clk 0:00:15]} 59. Rg7 {[%clk 0:00:10]}  Rh6 {[%clk 0:00:16]} 60. Rf7 {[%clk 0:00:10]}  Kc8 {[%clk 0:00:16]} 61. Rg7 {[%clk 0:00:10]}  Kd8 {[%clk 0:00:12]} 62. Rf7 {[%clk 0:00:10]}  Re6 {[%clk 0:00:12]} 63. Rg7 {[%clk 0:00:09]}  Kc8 {[%clk 0:00:12]} 64. Rh7 {[%clk 0:00:10]}  Kd8 {[%clk 0:00:12]} 65. Rg7 {[%clk 0:00:10]}  Re7 {[%clk 0:00:13]} 66. Rxe7 {[%clk 0:00:10]}  Kxe7 {[%clk 0:00:14]} 67. Kxc6 {[%clk 0:00:10]} 1/2-1/2


[Site "https://www.chess.com"]

[Event "Titled Tuesday Blitz October 11 Late 2022"]
[White "Reshetnikov, Alexey"]
[Black "Rasulov, Vugar"]
[WhiteFideId "4162080"]
[BlackFideId "13402390"]
[WhiteElo "2502"]
[BlackElo "2509"]
[Result "0-1"]
[Round "09"]
[TimeControl "180+1"]
[Date "2022.10.11"]
[WhiteClock "0:00:36"]
[BlackClock "0:01:25"]

1. e4 {[%clk 0:03:00]}  e5 {[%clk 0:02:59]} 2. Nf3 {[%clk 0:03:00]}  Nc6 {[%clk 0:03:00]} 3. Bc4 {[%clk 0:03:01]}  Nf6 {[%clk 0:02:59]} 4. d3 {[%clk 0:03:01]}  Be7 {[%clk 0:02:58]} 5. c3 {[%clk 0:03:00]}  O-O {[%clk 0:02:59]} 6. O-O {[%clk 0:03:01]}  d6 {[%clk 0:02:56]} 7. Bb3 {[%clk 0:03:00]}  Kh8 {[%clk 0:02:56]} 8. Nbd2 {[%clk 0:02:57]}  Ng8 {[%clk 0:02:56]} 9. d4 {[%clk 0:02:57]}  f5 {[%clk 0:02:56]} 10. dxe5 {[%clk 0:02:54]}  fxe4 {[%clk 0:02:52]} 11. exd6 {[%clk 0:02:44]}  Bxd6 {[%clk 0:02:43]} 12. Nxe4 {[%clk 0:02:43]}  Bg4 {[%clk 0:02:44]} 13. Nxd6 {[%clk 0:02:35]}  cxd6 {[%clk 0:02:42]} 14. Qd5 {[%clk 0:02:00]}  Bxf3 {[%clk 0:02:38]} 15. gxf3 {[%clk 0:02:01]}  Nge7 {[%clk 0:02:33]} 16. Qh5 {[%clk 0:01:55]}  Rf5 {[%clk 0:02:16]} 17. Qh3 {[%clk 0:01:48]}  Qe8 {[%clk 0:02:15]} 18. Kh1 {[%clk 0:01:13]}  Rh5 {[%clk 0:01:54]} 19. Qe6 {[%clk 0:01:12]}  Ne5 {[%clk 0:01:47]} 20. Bf4 {[%clk 0:00:59]}  Qc6 {[%clk 0:01:34]} 21. Bd1 {[%clk 0:00:36]}  Nxf3 {[%clk 0:01:25]} 0-1


[Site "https://www.chess.com"]